[Event "*** SCC Grand Prix: Titled Tuesday Blitz"]
[Site "Chess.com"]
[Date "2020.06.09"]
[Round "9"]
[White "VladimirBugayev"]
[Black "gumimis"]
[Result "1-0"]
[WhiteElo "2271"]
[BlackElo "2151"]
[TimeControl "180+1"]
[EndTime "10:46:20 PDT"]
[Termination "VladimirBugayev won on time"]

1. e4 {[%clk 0:03:00.9]} 1... c5 {[%clk 0:02:59]} 2. a3 {[%clk 0:03:00.2]} 2...
d6 {[%clk 0:02:54.3]} 3. Nc3 {[%clk 0:02:57.4]} 3... Nc6 {[%clk 0:02:53.8]} 4.
Bc4 {[%clk 0:02:57.5]} 4... e6 {[%clk 0:02:52.3]} 5. d3 {[%clk 0:02:55]} 5...
Nf6 {[%clk 0:02:51.2]} 6. Bg5 {[%clk 0:02:54.4]} 6... Be7 {[%clk 0:02:51.4]} 7.
Nf3 {[%clk 0:02:50.9]} 7... O-O {[%clk 0:02:51.2]} 8. O-O {[%clk 0:02:50.6]}
8... d5 {[%clk 0:02:47.2]} 9. Bb5 {[%clk 0:02:43.4]} 9... a6 {[%clk 0:02:24.3]}
10. Bxc6 {[%clk 0:02:40.2]} 10... bxc6 {[%clk 0:02:24.7]} 11. e5 {[%clk
0:02:38.6]} 11... Nd7 {[%clk 0:02:22.6]} 12. Bxe7 {[%clk 0:02:37.6]} 12... Qxe7
{[%clk 0:02:23.5]} 13. d4 {[%clk 0:02:38.1]} 13... cxd4 {[%clk 0:02:22.1]} 14.
Qxd4 {[%clk 0:02:34]} 14... c5 {[%clk 0:02:22.1]} 15. Qf4 {[%clk 0:02:34.1]}
15... Bb7 {[%clk 0:02:16.7]} 16. Rfe1 {[%clk 0:02:17.2]} 16... Nb6 {[%clk
0:02:09.9]} 17. b3 {[%clk 0:02:14.6]} 17... a5 {[%clk 0:01:50.8]} 18. Nb5 {[%clk
0:02:01.7]} 18... a4 {[%clk 0:01:47.2]} 19. Nd6 {[%clk 0:01:59.4]} 19... Bc6
{[%clk 0:01:41.3]} 20. b4 {[%clk 0:01:52.2]} 20... cxb4 {[%clk 0:01:37.6]} 21.
Qxb4 {[%clk 0:01:51]} 21... Nc4 {[%clk 0:01:32.4]} 22. Nd4 {[%clk 0:01:48]}
22... Bd7 {[%clk 0:01:22.1]} 23. Nxc4 {[%clk 0:01:47.2]} 23... Qxb4 {[%clk
0:01:21.7]} 24. axb4 {[%clk 0:01:47]} 24... dxc4 {[%clk 0:01:22.1]} 25. c3
{[%clk 0:01:43.6]} 25... Rfd8 {[%clk 0:01:16.3]} 26. Ra3 {[%clk 0:01:41.9]}
26... Be8 {[%clk 0:01:14.6]} 27. f4 {[%clk 0:01:40.8]} 27... Rd5 {[%clk
0:00:51.8]} 28. Kf2 {[%clk 0:01:35.9]} 28... Bd7 {[%clk 0:00:42.4]} 29. g3
{[%clk 0:01:34.8]} 29... Ra6 {[%clk 0:00:31.5]} 30. Rb1 {[%clk 0:01:24.4]} 30...
f6 {[%clk 0:00:23.1]} 31. exf6 {[%clk 0:01:23.8]} 31... gxf6 {[%clk 0:00:22.7]}
32. b5 {[%clk 0:01:23.6]} 32... Rb6 {[%clk 0:00:20.2]} 33. Rxa4 {[%clk
0:01:22.4]} 33... e5 {[%clk 0:00:20]} 34. Ne2 {[%clk 0:01:11.6]} 34... Rbxb5
{[%clk 0:00:17.8]} 35. Rab4 {[%clk 0:00:58.4]} 35... exf4 {[%clk 0:00:13.8]} 36.
Nxf4 {[%clk 0:00:57.8]} 36... Rd2+ {[%clk 0:00:14]} 37. Ke3 {[%clk 0:00:57]}
37... Rxb4 {[%clk 0:00:12.9]} 38. Rxb4 {[%clk 0:00:56.3]} 38... Rxh2 {[%clk
0:00:13.1]} 39. Rxc4 {[%clk 0:00:54.8]} 39... Rc2 {[%clk 0:00:12.3]} 40. Rc7
{[%clk 0:00:54.6]} 40... Bf5 {[%clk 0:00:12]} 41. c4 {[%clk 0:00:53.3]} 41...
Rc3+ {[%clk 0:00:10.9]} 42. Kf2 {[%clk 0:00:53]} 42... Bg4 {[%clk 0:00:08.1]}
43. c5 {[%clk 0:00:51.1]} 43... Bf5 {[%clk 0:00:01.6]} 44. Nd5 {[%clk
0:00:44.2]} 1-0

[Event "*** SCC Grand Prix: Titled Tuesday Blitz"]
[Site "Chess.com"]
[Date "2020.06.09"]
[Round "9"]
[White "eCztery"]
[Black "dosto07"]
[Result "1/2-1/2"]
[WhiteElo "2389"]
[BlackElo "2160"]
[TimeControl "180+1"]
[EndTime "10:46:23 PDT"]
[Termination "Game drawn by repetition"]

1. d4 {[%clk 0:03:00.9]} 1... d5 {[%clk 0:02:58.7]} 2. Nc3 {[%clk 0:03:01.5]}
2... Nf6 {[%clk 0:02:57.1]} 3. Bf4 {[%clk 0:03:02.1]} 3... e6 {[%clk 0:02:37.8]}
4. e3 {[%clk 0:03:01.6]} 4... Bd6 {[%clk 0:02:37.3]} 5. Bd3 {[%clk 0:02:55.6]}
5... O-O {[%clk 0:02:35.6]} 6. h4 {[%clk 0:02:48.5]} 6... c5 {[%clk 0:02:31.2]}
7. dxc5 {[%clk 0:02:46.4]} 7... Bxc5 {[%clk 0:02:29.8]} 8. g4 {[%clk 0:02:43.9]}
8... d4 {[%clk 0:02:14.2]} 9. g5 {[%clk 0:02:31.8]} 9... dxc3 {[%clk 0:02:09]}
10. gxf6 {[%clk 0:02:29.1]} 10... Qxf6 {[%clk 0:01:47.1]} 11. Qh5 {[%clk
0:02:21.7]} 11... g6 {[%clk 0:01:33.8]} 12. Qxc5 {[%clk 0:02:17.6]} 12... cxb2
{[%clk 0:01:33.9]} 13. Rb1 {[%clk 0:02:13.5]} 13... Na6 {[%clk 0:01:24.9]} 14.
Bxa6 {[%clk 0:01:34.1]} 14... bxa6 {[%clk 0:01:23.9]} 15. Qc6 {[%clk 0:01:21.2]}
15... Bb7 {[%clk 0:01:13.4]} 16. Qxb7 {[%clk 0:01:15.9]} 16... Qc3+ {[%clk
0:01:11.9]} 17. Kf1 {[%clk 0:01:11.9]} 17... e5 {[%clk 0:01:07.6]} 18. Qxb2
{[%clk 0:01:00.7]} 18... Qc4+ {[%clk 0:01:04]} 19. Kg2 {[%clk 0:01:00.7]} 19...
exf4 {[%clk 0:01:03.8]} 20. Qd4 {[%clk 0:00:58.8]} 20... Qxc2 {[%clk 0:00:55.3]}
21. Nf3 {[%clk 0:00:56.2]} 21... fxe3 {[%clk 0:00:50.5]} 22. Qxe3 {[%clk
0:00:57.1]} 22... Rfe8 {[%clk 0:00:37.9]} 23. Qf4 {[%clk 0:00:50.1]} 23... Re4
{[%clk 0:00:34.5]} 24. Qg3 {[%clk 0:00:48.2]} 24... h5 {[%clk 0:00:30]} 25. Rb8+
{[%clk 0:00:48.2]} 25... Rxb8 {[%clk 0:00:27.4]} 26. Qxb8+ {[%clk 0:00:49.1]}
26... Kg7 {[%clk 0:00:25.9]} 27. Ng5 {[%clk 0:00:29]} 27... Rg4+ {[%clk
0:00:23.5]} 28. Kh3 {[%clk 0:00:29.3]} 28... Qxf2 {[%clk 0:00:19.5]} 29. Qe5+
{[%clk 0:00:27.5]} 29... Kg8 {[%clk 0:00:15.7]} 30. Qe8+ {[%clk 0:00:12.3]}
30... Kg7 {[%clk 0:00:15.8]} 31. Qe5+ {[%clk 0:00:12]} 31... Kg8 {[%clk
0:00:15.6]} 32. Qe8+ {[%clk 0:00:07]} 32... Kg7 {[%clk 0:00:15.6]} 33. Qe5+
{[%clk 0:00:05.1]} 1/2-1/2

[Event "*** SCC Grand Prix: Titled Tuesday Blitz"]
[Site "Chess.com"]
[Date "2020.06.09"]
[Round "9"]
[White "topin8"]
[Black "Vandros57"]
[Result "1-0"]
[WhiteElo "2367"]
[BlackElo "2212"]
[TimeControl "180+1"]
[EndTime "10:46:23 PDT"]
[Termination "topin8 won by resignation"]

1. e4 {[%clk 0:02:54.8]} 1... c5 {[%clk 0:02:59.1]} 2. Nf3 {[%clk 0:02:54.3]}
2... e6 {[%clk 0:02:58.2]} 3. c3 {[%clk 0:02:54]} 3... d5 {[%clk 0:02:55.5]} 4.
e5 {[%clk 0:02:54]} 4... d4 {[%clk 0:02:53.8]} 5. cxd4 {[%clk 0:02:54.9]} 5...
cxd4 {[%clk 0:02:53.3]} 6. Bd3 {[%clk 0:02:55.5]} 6... Nc6 {[%clk 0:02:51.6]} 7.
O-O {[%clk 0:02:55.5]} 7... Nge7 {[%clk 0:02:50.1]} 8. a3 {[%clk 0:02:52]} 8...
Ng6 {[%clk 0:02:47.7]} 9. Re1 {[%clk 0:02:52.1]} 9... Qc7 {[%clk 0:02:44.8]} 10.
Bxg6 {[%clk 0:02:42.2]} 10... hxg6 {[%clk 0:02:43.3]} 11. d3 {[%clk 0:02:42.6]}
11... Be7 {[%clk 0:02:39.5]} 12. b4 {[%clk 0:02:42.2]} 12... Bd7 {[%clk
0:02:34.7]} 13. Nbd2 {[%clk 0:02:42.4]} 13... O-O {[%clk 0:02:31.8]} 14. Bb2
{[%clk 0:02:39.8]} 14... a5 {[%clk 0:02:25.5]} 15. b5 {[%clk 0:02:37.1]} 15...
Na7 {[%clk 0:02:20]} 16. Rc1 {[%clk 0:02:33.4]} 16... Qd8 {[%clk 0:02:13.7]} 17.
a4 {[%clk 0:02:32.2]} 17... Bb4 {[%clk 0:02:09.6]} 18. Nxd4 {[%clk 0:02:25.9]}
18... Nc8 {[%clk 0:02:05.8]} 19. Re3 {[%clk 0:02:19.8]} 19... Nb6 {[%clk
0:02:03]} 20. Ne4 {[%clk 0:02:17.5]} 20... Nd5 {[%clk 0:01:56.9]} 21. Re2 {[%clk
0:02:06.1]} 21... Qe7 {[%clk 0:01:53.5]} 22. Rec2 {[%clk 0:02:03.1]} 22... Rfc8
{[%clk 0:01:50.8]} 23. Ne2 {[%clk 0:01:46.9]} 23... Rxc2 {[%clk 0:01:36.3]} 24.
Rxc2 {[%clk 0:01:46.5]} 24... Rc8 {[%clk 0:01:35.7]} 25. Rxc8+ {[%clk
0:01:46.2]} 25... Bxc8 {[%clk 0:01:35.1]} 26. Qc2 {[%clk 0:01:46]} 26... Qc7
{[%clk 0:01:34]} 27. Qxc7 {[%clk 0:01:40.2]} 27... Nxc7 {[%clk 0:01:33.5]} 28.
Bc3 {[%clk 0:01:19.1]} 28... Bxc3 {[%clk 0:01:28.3]} 29. N2xc3 {[%clk
0:01:18.2]} 29... b6 {[%clk 0:01:25.3]} 30. Nd6 {[%clk 0:01:10.2]} 30... Bd7
{[%clk 0:01:24.4]} 31. Nc4 {[%clk 0:01:10.7]} 31... Na8 {[%clk 0:01:21.2]} 32.
f4 {[%clk 0:01:07.1]} 32... Kf8 {[%clk 0:01:20.4]} 33. Kf2 {[%clk 0:01:07.2]}
33... Ke7 {[%clk 0:01:20.2]} 34. Ke3 {[%clk 0:01:07.5]} 34... Kd8 {[%clk
0:01:13.3]} 35. d4 {[%clk 0:01:07.6]} 35... Bc8 {[%clk 0:01:10]} 36. d5 {[%clk
0:01:07.7]} 36... Kc7 {[%clk 0:01:03]} 37. Nd6 {[%clk 0:01:01.9]} 37... Bb7
{[%clk 0:01:01.9]} 38. Nxf7 {[%clk 0:00:56.3]} 38... Bxd5 {[%clk 0:00:57.4]} 39.
Nxd5+ {[%clk 0:00:50.9]} 39... exd5 {[%clk 0:00:57.3]} 40. e6 {[%clk 0:00:47.6]}
40... Kc8 {[%clk 0:00:57.3]} 41. Kd4 {[%clk 0:00:19]} 41... Nc7 {[%clk
0:00:56.4]} 42. Nd6+ {[%clk 0:00:17.1]} 42... Kd8 {[%clk 0:00:55.4]} 43. Ke5
{[%clk 0:00:17.7]} 43... Ke7 {[%clk 0:00:54.3]} 44. Nc8+ {[%clk 0:00:17]} 44...
Ke8 {[%clk 0:00:53.8]} 45. Nxb6 {[%clk 0:00:17.9]} 45... Ke7 {[%clk 0:00:52.5]}
46. Nxd5+ {[%clk 0:00:17.5]} 46... Ke8 {[%clk 0:00:51.9]} 47. Nxc7+ {[%clk
0:00:17.4]} 1-0

[Event "*** SCC Grand Prix: Titled Tuesday Blitz"]
[Site "Chess.com"]
[Date "2020.06.09"]
[Round "9"]
[White "Vesper2018"]
[Black "SketchyMoves"]
[Result "0-1"]
[WhiteElo "2416"]
[BlackElo "2647"]
[TimeControl "180+1"]
[EndTime "10:46:29 PDT"]
[Termination "SketchyMoves won by resignation"]

1. e4 {[%clk 0:03:00.2]} 1... e6 {[%clk 0:02:59.8]} 2. d4 {[%clk 0:03:00]} 2...
d5 {[%clk 0:03:00]} 3. e5 {[%clk 0:03:00.6]} 3... c5 {[%clk 0:02:56.7]} 4. c3
{[%clk 0:03:00.2]} 4... Nc6 {[%clk 0:02:56.5]} 5. Nf3 {[%clk 0:03:00.4]} 5...
Qb6 {[%clk 0:02:56.3]} 6. Be2 {[%clk 0:03:00.1]} 6... cxd4 {[%clk 0:02:54.6]} 7.
cxd4 {[%clk 0:02:59.7]} 7... Nge7 {[%clk 0:02:55.2]} 8. b3 {[%clk 0:02:34.4]}
8... Nf5 {[%clk 0:02:53]} 9. Bb2 {[%clk 0:02:34.7]} 9... a5 {[%clk 0:02:53.2]}
10. O-O {[%clk 0:02:20.7]} 10... Bd7 {[%clk 0:02:46.3]} 11. a4 {[%clk
0:02:18.8]} 11... Be7 {[%clk 0:02:35.4]} 12. g4 {[%clk 0:02:16.3]} 12... Nh4
{[%clk 0:02:34.1]} 13. Nxh4 {[%clk 0:02:15]} 13... Bxh4 {[%clk 0:02:35]} 14. Na3
{[%clk 0:02:13.5]} 14... Be7 {[%clk 0:02:31.5]} 15. Nb5 {[%clk 0:02:13.1]} 15...
O-O {[%clk 0:02:27.2]} 16. Kg2 {[%clk 0:02:11.6]} 16... f5 {[%clk 0:02:25.6]}
17. exf6 {[%clk 0:02:06.6]} 17... Bxf6 {[%clk 0:02:25.4]} 18. f4 {[%clk
0:01:49]} 18... g6 {[%clk 0:02:14.1]} 19. Qd2 {[%clk 0:01:47.4]} 19... Rac8
{[%clk 0:02:08.6]} 20. Rac1 {[%clk 0:01:46]} 20... Nb4 {[%clk 0:02:05.7]} 21.
Bc3 {[%clk 0:01:42.2]} 21... Bxb5 {[%clk 0:02:02.2]} 22. Bxb5 {[%clk 0:01:40.6]}
22... Qd6 {[%clk 0:01:58.7]} 23. Rce1 {[%clk 0:01:23.6]} 23... Bg7 {[%clk
0:01:48.6]} 24. Rf3 {[%clk 0:01:23.2]} 24... Rf7 {[%clk 0:01:45.3]} 25. Ref1
{[%clk 0:01:16.7]} 25... Rcf8 {[%clk 0:01:44.2]} 26. h4 {[%clk 0:01:07.5]} 26...
Bh6 {[%clk 0:01:42.1]} 27. g5 {[%clk 0:01:07.2]} 27... Bg7 {[%clk 0:01:42.3]}
28. Kg3 {[%clk 0:01:03.5]} 28... Rc8 {[%clk 0:01:28.7]} 29. h5 {[%clk
0:00:59.1]} 29... Rf5 {[%clk 0:01:23]} 30. Kg2 {[%clk 0:00:50.5]} 30... gxh5
{[%clk 0:01:18.7]} 31. Bxb4 {[%clk 0:00:43.3]} 31... axb4 {[%clk 0:01:17.5]} 32.
Bd3 {[%clk 0:00:42.9]} 32... Rf7 {[%clk 0:01:09.8]} 33. Rh1 {[%clk 0:00:42.8]}
33... Bxd4 {[%clk 0:00:58.2]} 34. Rxh5 {[%clk 0:00:42]} 34... Bc3 {[%clk
0:00:53]} 35. Qc2 {[%clk 0:00:40.7]} 35... Qc7 {[%clk 0:00:44.5]} 36. g6 {[%clk
0:00:26.3]} 36... hxg6 {[%clk 0:00:38.5]} 37. Bxg6 {[%clk 0:00:26.1]} 37... Rxf4
{[%clk 0:00:34.7]} 38. Bh7+ {[%clk 0:00:19.1]} 38... Kf8 {[%clk 0:00:30]} 39.
Qg6 {[%clk 0:00:17.1]} 39... Rxf3 {[%clk 0:00:24.7]} 40. Kxf3 {[%clk 0:00:14.9]}
40... Qf7+ {[%clk 0:00:21.4]} 41. Qxf7+ {[%clk 0:00:15.4]} 41... Kxf7 {[%clk
0:00:22.3]} 42. Ke3 {[%clk 0:00:15.7]} 42... Rh8 {[%clk 0:00:19.8]} 43. Rh3
{[%clk 0:00:12.8]} 43... Kg7 {[%clk 0:00:18.5]} 44. Bf5 {[%clk 0:00:13.1]} 44...
exf5 {[%clk 0:00:18.5]} 0-1

[Event "*** SCC Grand Prix: Titled Tuesday Blitz"]
[Site "Chess.com"]
[Date "2020.06.09"]
[Round "9"]
[White "snap_man"]
[Black "Shushik"]
[Result "0-1"]
[WhiteElo "2275"]
[BlackElo "2181"]
[TimeControl "180+1"]
[EndTime "10:46:33 PDT"]
[Termination "Shushik won by resignation"]

1. e4 {[%clk 0:03:00.9]} 1... e5 {[%clk 0:02:59.1]} 2. Nf3 {[%clk 0:03:01.3]}
2... Nc6 {[%clk 0:02:59]} 3. Bb5 {[%clk 0:03:01.9]} 3... Nf6 {[%clk 0:02:58.9]}
4. d3 {[%clk 0:03:01.7]} 4... d6 {[%clk 0:02:59.1]} 5. O-O {[%clk 0:03:01.6]}
5... a6 {[%clk 0:02:59.1]} 6. Ba4 {[%clk 0:03:01.5]} 6... b5 {[%clk 0:02:59.1]}
7. Bb3 {[%clk 0:03:01.8]} 7... Na5 {[%clk 0:02:59.2]} 8. Nc3 {[%clk 0:02:25.9]}
8... Be7 {[%clk 0:02:47.4]} 9. Nd5 {[%clk 0:02:16.6]} 9... Nxd5 {[%clk
0:02:46.6]} 10. exd5 {[%clk 0:02:15]} 10... O-O {[%clk 0:02:42.1]} 11. c4 {[%clk
0:01:58.2]} 11... Nxb3 {[%clk 0:02:40.9]} 12. axb3 {[%clk 0:01:57.6]} 12... Bd7
{[%clk 0:02:34.6]} 13. Bd2 {[%clk 0:01:44.3]} 13... f5 {[%clk 0:02:32.5]} 14.
Ba5 {[%clk 0:01:43.9]} 14... Bf6 {[%clk 0:02:27.5]} 15. Qc2 {[%clk 0:01:43.9]}
15... bxc4 {[%clk 0:02:14.5]} 16. bxc4 {[%clk 0:01:39.6]} 16... g5 {[%clk
0:02:07.8]} 17. b4 {[%clk 0:01:32.7]} 17... Kh8 {[%clk 0:02:03.9]} 18. Rac1
{[%clk 0:01:29.1]} 18... g4 {[%clk 0:02:00.1]} 19. Nd2 {[%clk 0:01:28.8]} 19...
f4 {[%clk 0:01:52.7]} 20. Ne4 {[%clk 0:01:24.3]} 20... Rg8 {[%clk 0:01:47.2]}
21. Nxd6 {[%clk 0:01:22.3]} 21... Qe7 {[%clk 0:01:41.6]} 22. Ne4 {[%clk
0:01:17.5]} 22... Rac8 {[%clk 0:01:37.8]} 23. Bxc7 {[%clk 0:01:15.6]} 23... g3
{[%clk 0:01:31]} 24. hxg3 {[%clk 0:00:35.5]} 24... f3 {[%clk 0:01:25.8]} 25. Bd6
{[%clk 0:00:30.1]} 25... Qg7 {[%clk 0:01:24.1]} 26. Qb2 {[%clk 0:00:22.7]} 26...
Rce8 {[%clk 0:01:11.6]} 27. Rce1 {[%clk 0:00:17.5]} 27... Qh6 {[%clk 0:01:07.7]}
28. Nxf6 {[%clk 0:00:17.3]} 28... fxg2 {[%clk 0:01:05.3]} 29. Kxg2 {[%clk
0:00:15.6]} 29... Qh3+ {[%clk 0:01:04.2]} 30. Kf3 {[%clk 0:00:15.8]} 30... Qf5+
{[%clk 0:01:02.8]} 31. Ke2 {[%clk 0:00:15.9]} 31... Qxf6 {[%clk 0:01:01.7]} 32.
Kd1 {[%clk 0:00:15.9]} 32... Qxd6 {[%clk 0:01:00.4]} 33. d4 {[%clk 0:00:13.3]}
33... e4 {[%clk 0:00:55.2]} 34. f3 {[%clk 0:00:12.1]} 34... exf3 {[%clk
0:00:53.2]} 35. Rxf3 {[%clk 0:00:10.6]} 35... Bg4 {[%clk 0:00:51.1]} 36. Qf2
{[%clk 0:00:09.5]} 36... Rxe1+ {[%clk 0:00:45.1]} 37. Kxe1 {[%clk 0:00:09.5]}
37... Qxb4+ {[%clk 0:00:44.8]} 38. Kf1 {[%clk 0:00:10.4]} 38... Bxf3 {[%clk
0:00:42.7]} 39. Kg1 {[%clk 0:00:11.3]} 39... Qb1+ {[%clk 0:00:40.7]} 0-1

[Event "*** SCC Grand Prix: Titled Tuesday Blitz"]
[Site "Chess.com"]
[Date "2020.06.09"]
[Round "9"]
[White "PawnEatingZombie"]
[Black "dianamirza"]
[Result "1-0"]
[WhiteElo "2114"]
[BlackElo "1986"]
[TimeControl "180+1"]
[EndTime "10:46:35 PDT"]
[Termination "PawnEatingZombie won by resignation"]

1. d4 {[%clk 0:03:00.9]} 1... Nf6 {[%clk 0:02:59.7]} 2. c4 {[%clk 0:03:00.4]}
2... g6 {[%clk 0:02:59.9]} 3. Nc3 {[%clk 0:03:00]} 3... Bg7 {[%clk 0:03:00.8]}
4. e4 {[%clk 0:03:00]} 4... O-O {[%clk 0:03:01.7]} 5. Be2 {[%clk 0:03:00.4]}
5... d6 {[%clk 0:03:01.8]} 6. Be3 {[%clk 0:03:00.7]} 6... Nbd7 {[%clk
0:02:58.9]} 7. Nf3 {[%clk 0:02:59.8]} 7... e5 {[%clk 0:02:58.3]} 8. O-O {[%clk
0:03:00.2]} 8... exd4 {[%clk 0:02:58.2]} 9. Nxd4 {[%clk 0:02:59.9]} 9... a5
{[%clk 0:02:57.1]} 10. Qd2 {[%clk 0:02:53.9]} 10... Ne5 {[%clk 0:02:51.2]} 11.
f3 {[%clk 0:02:49.5]} 11... Rb8 {[%clk 0:02:43.6]} 12. Ndb5 {[%clk 0:02:43.3]}
12... Nc6 {[%clk 0:02:38.3]} 13. Rac1 {[%clk 0:02:32.6]} 13... Nd7 {[%clk
0:02:33.5]} 14. Nd5 {[%clk 0:02:25.4]} 14... Nb4 {[%clk 0:02:19.9]} 15. Nbxc7
{[%clk 0:02:21.1]} 15... Nxa2 {[%clk 0:02:16.8]} 16. Ra1 {[%clk 0:02:02.8]}
16... Nb4 {[%clk 0:02:09]} 17. Nxb4 {[%clk 0:01:42.6]} 17... axb4 {[%clk
0:02:06.8]} 18. Nd5 {[%clk 0:01:41.8]} 18... b3 {[%clk 0:01:47.1]} 19. Bd4
{[%clk 0:01:24]} 19... Nc5 {[%clk 0:01:27.6]} 20. Bxg7 {[%clk 0:01:22.9]} 20...
Kxg7 {[%clk 0:01:27]} 21. Qd4+ {[%clk 0:01:22.2]} 21... f6 {[%clk 0:01:25.3]}
22. f4 {[%clk 0:01:14]} 22... Be6 {[%clk 0:01:10.2]} 23. f5 {[%clk 0:01:07.1]}
23... Bxd5 {[%clk 0:01:07.4]} 24. exd5 {[%clk 0:00:53.8]} 24... Qe7 {[%clk
0:01:03]} 25. Bg4 {[%clk 0:00:40.1]} 25... Qe5 {[%clk 0:00:59.4]} 26. Qxe5
{[%clk 0:00:33.2]} 26... dxe5 {[%clk 0:00:59.6]} 27. Rfd1 {[%clk 0:00:20.9]}
27... b5 {[%clk 0:00:53.1]} 28. Ra5 {[%clk 0:00:19.7]} 28... Na4 {[%clk
0:00:43.7]} 29. Rxb5 {[%clk 0:00:19.5]} 29... Rxb5 {[%clk 0:00:42.4]} 30. cxb5
{[%clk 0:00:19.9]} 30... Nxb2 {[%clk 0:00:42.5]} 31. Rb1 {[%clk 0:00:20.3]}
31... Nc4 {[%clk 0:00:35.4]} 32. Rxb3 {[%clk 0:00:19.8]} 32... Rd8 {[%clk
0:00:32.7]} 33. b6 {[%clk 0:00:18.7]} 33... Rb8 {[%clk 0:00:30.2]} 34. fxg6
{[%clk 0:00:15.6]} 34... Rxb6 {[%clk 0:00:28]} 35. Rxb6 {[%clk 0:00:13.5]} 35...
Nxb6 {[%clk 0:00:28.9]} 36. gxh7 {[%clk 0:00:13.6]} 36... Kxh7 {[%clk
0:00:28.6]} 37. d6 {[%clk 0:00:13.3]} 37... Kg6 {[%clk 0:00:21.6]} 38. d7 {[%clk
0:00:13.3]} 38... Nxd7 {[%clk 0:00:21.8]} 39. Bxd7 {[%clk 0:00:13.1]} 39... f5
{[%clk 0:00:22.7]} 40. Kf2 {[%clk 0:00:12.8]} 40... Kg5 {[%clk 0:00:23]} 41.
Bxf5 {[%clk 0:00:11.1]} 41... Kxf5 {[%clk 0:00:22.6]} 42. Kf3 {[%clk 0:00:11.5]}
42... e4+ {[%clk 0:00:20.4]} 43. Ke3 {[%clk 0:00:11.5]} 43... Ke5 {[%clk
0:00:20.7]} 44. g4 {[%clk 0:00:10.7]} 44... Kf6 {[%clk 0:00:18.5]} 45. Kxe4
{[%clk 0:00:10.3]} 45... Kg5 {[%clk 0:00:18.8]} 46. Kf3 {[%clk 0:00:10.9]} 46...
Kh4 {[%clk 0:00:18.8]} 47. Kf4 {[%clk 0:00:11.3]} 1-0

[Event "*** SCC Grand Prix: Titled Tuesday Blitz"]
[Site "Chess.com"]
[Date "2020.06.09"]
[Round "9"]
[White "Vitor-Moraes"]
[Black "Boudicca64"]
[Result "1-0"]
[WhiteElo "1971"]
[BlackElo "1820"]
[TimeControl "180+1"]
[EndTime "10:46:35 PDT"]
[Termination "Vitor-Moraes won by checkmate"]

1. e4 {[%clk 0:03:00.9]} 1... c5 {[%clk 0:02:58.3]} 2. Nc3 {[%clk 0:03:00.3]}
2... Nc6 {[%clk 0:02:56.5]} 3. Bb5 {[%clk 0:03:00.7]} 3... g6 {[%clk 0:02:54.5]}
4. Bxc6 {[%clk 0:03:00.6]} 4... bxc6 {[%clk 0:02:53]} 5. f4 {[%clk 0:03:01.5]}
5... Bg7 {[%clk 0:02:51.8]} 6. Nf3 {[%clk 0:03:01.5]} 6... e6 {[%clk 0:02:52.1]}
7. d3 {[%clk 0:03:01.6]} 7... Ne7 {[%clk 0:02:51.9]} 8. e5 {[%clk 0:03:00.4]}
8... Nf5 {[%clk 0:02:34.3]} 9. Ne4 {[%clk 0:02:58.9]} 9... Qb6 {[%clk
0:02:29.2]} 10. g4 {[%clk 0:02:36.5]} 10... Nd4 {[%clk 0:02:24.9]} 11. Nd6+
{[%clk 0:02:32.3]} 11... Kf8 {[%clk 0:02:20.7]} 12. Ng5 {[%clk 0:02:32.5]} 12...
f6 {[%clk 0:02:10]} 13. Ngf7 {[%clk 0:02:15]} 13... Rg8 {[%clk 0:02:07.3]} 14.
exf6 {[%clk 0:01:48.4]} 14... Bxf6 {[%clk 0:02:01]} 15. Nh6 {[%clk 0:01:43.6]}
15... Bh4+ {[%clk 0:01:54.4]} 16. Kf1 {[%clk 0:01:41.3]} 16... Rg7 {[%clk
0:01:42.3]} 17. g5 {[%clk 0:01:28.9]} 17... Qc7 {[%clk 0:01:22.8]} 18. Ne4
{[%clk 0:01:23.6]} 18... Nf5 {[%clk 0:01:10.7]} 19. Nxf5 {[%clk 0:01:11]} 19...
exf5 {[%clk 0:01:04.9]} 20. Nf6 {[%clk 0:01:00.3]} 20... h6 {[%clk 0:01:02.4]}
21. gxh6 {[%clk 0:00:55.9]} 21... Rf7 {[%clk 0:00:52.3]} 22. h7 {[%clk 0:00:40]}
22... Bxf6 {[%clk 0:00:50.3]} 23. Rg1 {[%clk 0:00:33.8]} 23... Rxh7 {[%clk
0:00:38.8]} 24. Rxg6 {[%clk 0:00:34.1]} 24... Kf7 {[%clk 0:00:32.8]} 25. Rg2
{[%clk 0:00:27.3]} 25... Ba6 {[%clk 0:00:23.4]} 26. Qf3 {[%clk 0:00:20.5]} 26...
Rah8 {[%clk 0:00:19.8]} 27. Qg3 {[%clk 0:00:14.2]} 27... c4 {[%clk 0:00:18.8]}
28. Qg6+ {[%clk 0:00:13.5]} 28... Ke7 {[%clk 0:00:16.6]} 29. Bd2 {[%clk
0:00:13.8]} 29... cxd3 {[%clk 0:00:14.7]} 30. Re1+ {[%clk 0:00:13.9]} 30... Kd6
{[%clk 0:00:13.4]} 31. Qxf6+ {[%clk 0:00:12.4]} 31... Kc5 {[%clk 0:00:13.2]} 32.
Be3+ {[%clk 0:00:05.5]} 32... Kb5 {[%clk 0:00:10.9]} 33. a4+ {[%clk 0:00:05.3]}
33... Ka5 {[%clk 0:00:10]} 34. Qc3+ {[%clk 0:00:04.9]} 34... Kxa4 {[%clk
0:00:05.6]} 35. Ra1+ {[%clk 0:00:04.5]} 35... Kb5 {[%clk 0:00:02.9]} 36. Qb3#
{[%clk 0:00:03.4]} 1-0